Cogmind - Beta 15 @@@ ROGUE MODE // 2025.10.06 @ 17:03:42 Player: Dylbot Result: Destroyed by S-10 Pest with Light Assault Rifle Performance ------------- Evolutions (1) 500 Regions Visited (2) 400 Robots Destroyed (19) 95 Value Destroyed (498) 498 Prototype IDs (0) 0 Alien Tech Used (0) 0 Bonus (0) 0 TOTAL SCORE: 1493 Bonus ------- None Cogmind --------- Core Integrity 0/400 Matter 264/400 Energy 100/100 System Corruption 0% Temperature Cool (0) Movement Walking (400) Ox4 Location -9/Materials Parts ------- > --- POWER (3) -------- (None) > --- PROPULSION (2) --- Aluminum Leg > --- UTILITY (2) ------ High-capacity Storage Unit Medium Matter Pod > --- WEAPON (2) ------- (None) > --- INVENTORY (20) --- (None) Peak State ------------ > --- POWER ------------ Ion Engine Ion Engine Light Ion Engine > --- PROPULSION ------- Aluminum Leg Aluminum Leg > --- UTILITY ---------- High-capacity Storage Unit Medium Matter Pod > --- WEAPON ----------- Light Assault Rifle Light Assault Rifle > --- INVENTORY -------- Wheel Wheel Assault Rifle Light Assault Rifle Light Cannon [Rating: 9] Favorites ----------- Power Ion Engine Engine Ion Engine Propulsion Aluminum Leg Leg Aluminum Leg Wheel Wheel Utility High-capacity Storage Unit Device ECM Suite Storage High-capacity Storage Unit Weapon Light Assault Rifle Energy Gun Small Laser Ballistic Gun Light Assault Rifle Ballistic Cannon Light Cannon Build | -11 -10 -9 ------- Run | Yrd Mat Mat Slots Evolved 2 | . . 2 Power 2 | . . 2 Propulsion . | . . . Utility . | . . . Weapon . | . . . Parts Attached 23 | 6 5 12 Power 5 | 1 . 4 Engine 5 | 1 . 4 Core . | . . . Reactor . | . . . Propulsion 7 | 2 . 5 Treads . | . . . Leg 3 | 2 . 1 Wheel 4 | . . 4 Hover . | . . . Flight . | . . . Utility 5 | 1 4 . Device 2 | . 2 . Storage 3 | 1 2 . Processor . | . . . Hackware . | . . . Protection . | . . . Artifact . | . . . Weapon 6 | 2 1 3 Energy Gun 1 | 1 . . Energy Cannon . | . . . Ballistic Gun 4 | 1 1 2 Ballistic Cannon 1 | . . 1 Launcher . | . . . Special Weapon . | . . . Impact Weapon . | . . . Slashing Weapon . | . . . Piercing Weapon . | . . . Special Melee Weapon . | . . . Unidentified Prototypes . | . . . Parts Lost 12 | . . 12 Power 4 | . . 4 Propulsion 4 | . . 4 Utility . | . . . Weapon 4 | . . 4 Highest Loss Streak 5 | . . 5 To Critical Strikes . | . . . Average Backups 4 | 3 5 3 Power . | . 1 . Propulsion 1 | 1 2 1 Utility . | . . . Weapon 1 | 1 1 1 Tool/Special . | . . . Unused Backups 1 | . . 1 Power . | . . . Propulsion . | . . . Utility . | . . . Weapon 1 | . . 1 Tool/Special . | . . . Average Slot Usage (%) 84 | . 94 77 Engine 17 | . 14 20 Leg 15 | . 28 7 Wheel 4 | . . 8 Device 2 | . 6 . Storage 19 | . 16 22 Energy Gun 3 | . 8 . Ballistic Gun 18 | . 19 18 Peak Build Rating 9 | 6 7 9 Average Rating 6 | 3 6 7 On Entrance 4 | . 6 7 Naked Turns . | . . . Heaviest Build 57 | 12 52 57 Greatest Support 32 | 20 20 32 Greatest Overweight (x) 14 | 3 2 14 Average Overweight (x) 1 | . . 2 Largest Inventory Capacity 20 | 8 20 20 Average Capacity 17 | 7 15 20 Most Carried 8 | 6 8 8 Average Carried 4 | 3 5 3 Final Capacity 20 | 8 20 20 Final Carried 7 | 4 7 . Class Distribution -------------------- 100% | Mutant Dominant Class ---------------- Mutant | -10/Materials Mutant | -9/Materials Resources | -11 -10 -9 ----------- Run | Yrd Mat Mat Matter Collected 521 | 177 90 254 Remotely . | . . . Salvage Created 654 | . 90 564 Parts 40 | . 7 33 Haulers Intercepted . | . . . Recyclers Shooed . | . . . Parts Field Recycled . | . . . Retrieved Matter . | . . . Parts Self-Destructed . | . . . Prevented . | . . . Kills | -11 -10 -9 ------- Run | Yrd Mat Mat Combat Hostiles Destroyed 17 | . 5 12 Guns 14 | . 5 9 Cannons 3 | . . 3 Classes Destroyed 5 | . 1 4 Worker 1 | . . 1 Recycler 1 | . . 1 Swarmer 6 | . 5 1 Grunt 10 | . . 10 Sentry 1 | . . 1 Best Kill Streak 5 | . 3 5 Combat Bots Only 5 | . 3 5 Max Kills in Single Turn 1 | . 1 1 Gunslinging . | . . . Exploded . | . . . Melee . | . . . Uniques/NPCs Destroyed . | . . . Combat | -11 -10 -9 -------- Run | Yrd Mat Mat Hostile Shots Fired 182 | . 23 159 Missed 51 | . 6 45 Hits 131 | . 17 114 Projectile 131 | . 17 114 Critical Strikes 1 | . 1 . Damage Taken 1459 | . 147 1312 Core 444 | . 44 400 Absorbed by Shields . | . . . Core Remaining (%) 91 | 100 82 . Volleys Fired 86 | . 17 69 Largest 2 | . 2 2 Hottest 60 | . 60 50 Shots Fired 144 | . 29 115 Gun 133 | . 29 104 Cannon 11 | . . 11 Launcher . | . . . Special . | . . . Kinetic 134 | . 19 115 Thermal 10 | . 10 . Explosive . | . . . Electromagnetic . | . . . Robot Hit Streak 9 | . 5 9 Robot Miss Streak 4 | . 3 4 Penetration Max . | . . . Secondary Targets 1 | . 1 . Max Gunslinging Chain 1 | . 1 . Shots Hit Robots 93 | . 18 75 Core Hits 38 | . 9 29 Critical Kills 1 | . . 1 Critical Parts Destroyed . | . . . Critical Strikes 1 | . . 1 Destroy 1 | . . 1 Melee Attacks . | . . . Impact . | . . . Slashing . | . . . Piercing . | . . . Sneak Attacks . | . . . Combat Hostiles . | . . . Follow-up Attacks . | . . . Damage Inflicted 1019 | . 154 865 Guns 885 | . 154 731 Cannons 134 | . . 134 Explosions . | . . . Melee . | . . . Ramming . | . . . Kinetic 976 | . 111 865 Thermal 43 | . 43 . Explosive . | . . . Electromagnetic . | . . . Impact . | . . . Slashing . | . . . Piercing . | . . . Highest Corruption . | . . . Average Corruption . | . . . Corruption Purged . | . . . Corruption Blocked . | . . . Overload Shots . | . . . Overflow Damage . | . . . Projectiles . | . . . Explosions . | . . . Melee . | . . . Knockbacks 2 | . . 2 Impact . | . . . Kinetic 2 | . . 2 Secondary . | . . . Self-Inflicted Damage . | . . . Shots . | . . . Rammed . | . . . Targets Rammed . | . . . Kicked . | . . . Crushed . | . . . Highest Temperature 41 | . 40 41 Average Temperature 12 | . 17 11 Received Heat Transfer 573 | . . 573 Siege Activations . | . . . Martial Activations . | . . . Shielding Activations . | . . . Robots Disrupted . | . . . Combat Hostiles . | . . . Robots Corrupted . | . . . Combat Hostiles . | . . . Parts Fried . | . . . Impact Corruptions . | . . . Robots Melted . | . . . Combat Hostiles . | . . . Parts Melted . | . . . Heat Transferred 100 | . 100 . Parts Sabotaged . | . . . Parts Stolen . | . . . Parts Stripped . | . . . Power Chain Reactions . | . . . Alert | -11 -10 -9 ------- Run | Yrd Mat Mat Maximum Alert Level . | . . . Low Security (%) 100 | 100 100 100 Level 1 . | . . . Level 2 . | . . . Level 3 . | . . . Level 4 . | . . . Level 5 . | . . . High Security . | . . . Max Security . | . . . Peak Influence 130 | . 70 130 Initial . | . . . Average 36 | . 29 46 Influence Increases 538 | . 156 382 Destroy 0b10 Robot/C 340 | . 100 240 Destroy 0b10 Robot/NC 10 | . . 10 Destroy Leader 60 | . 20 40 Successful Hack 8 | . 6 2 Disable Machine 30 | . . 30 Lose Combat Pursuer 90 | . 30 60 Influence Decreases 453 | . 156 297 Time Decay 324 | . 134 190 Lost Part 107 | . . 107 Purge Threat 22 | . 22 . Squads Dispatched 1 | . . 1 Investigation 1 | . . 1 Extermination . | . . . Reinforcement . | . . . Assault . | . . . Garrison . | . . . Intercept . | . . . Searches Triggered . | . . . Construction Impeded . | . . . Haulers Reinforced . | . . . Active Scanning Responses . | . . . Cargo Convoy Interrupts . | . . . Stealth | -11 -10 -9 --------- Run | Yrd Mat Mat Distress Signals . | . . . Communications Jammed . | . . . Distress Signals . | . . . Times Spotted 27 | . 8 19 Peak Tracking Total 5 | . 3 5 Tactical Retreats 3 | . 1 2 Traps | -11 -10 -9 ------- Run | Yrd Mat Mat Traps Triggered . | . . . Indirectly . | . . . Trap Hack Attempts . | . . . Triggered . | . . . Disarmed . | . . . Reprogrammed . | . . . Reused . | . . . Traps Extracted . | . . . Installed . | . . . Triggered . | . . . Machines | -11 -10 -9 ---------- Run | Yrd Mat Mat Machines Disabled 2 | . . 2 Max in Single Turn 1 | . . 1 Machines Repaired . | . . . Machines Dismantled . | . . . Machines Sabotaged . | . . . Overloaded Fab Kills . | . . . Hacking | -11 -10 -9 --------- Run | Yrd Mat Mat Machines Accessed 5 | . 3 2 Terminals 4 | . 3 1 Fabricators . | . . . Repair Stations . | . . . Recycling Units 1 | . . 1 Scanalyzers . | . . . Garrison Access . | . . . Total Hacks 18 | . 9 9 Successful 12 | . 4 8 Failed 6 | . 5 1 Catastrophic 2 | . 2 . Database Lockouts . | . . . Manual . | . . . Terminals 13 | . 9 4 Fabricators . | . . . Repair Stations . | . . . Recycling Units 5 | . . 5 Scanalyzers . | . . . Garrison Access . | . . . Terminal Hacks 7 | . 4 3 Record 3 | . 1 2 Alert Level 1 | . 1 . Unreport Threat 1 | . 1 . Dispatch Records 1 | . 1 . Recall Investigation 1 | . . 1 Fabricator Hacks . | . . . Repair Station Hacks . | . . . Recycling Unit Hacks 5 | . . 5 Recycle Component 3 | . . 3 Process 1 | . . 1 Retrieve Matter 1 | . . 1 Scanalyzer . | . . . Garrison Access Hacks . | . . . Unauthorized Hacks . | . . . Terminals . | . . . Fabricators . | . . . Repair Stations . | . . . Recycling Units . | . . . Scanalyzers . | . . . Garrison Access . | . . . Data Cores Recovered . | . . . Used . | . . . Hacking Detections 4 | . 3 1 Full Trace Events 1 | . . 1 Feedback Events . | . . . Feedback Blocked . | . . . Robot Schematics Acquired . | . . . Robots Built . | . . . Authchips . | . . . Time . | . . . Total Robot Build Rating . | . . . Part Schematics Acquired . | . . . Parts Built . | . . . Authchips . | . . . Time . | . . . Total Part Build Rating . | . . . Parts Repaired . | . . . Time . | . . . Parts Recycled 3 | . . 3 Recycled Matter 81 | . . 81 Retrieved Matter 81 | . . 81 Retrieved Components . | . . . Parts Scanalyzed . | . . . Part Schematics Acquired . | . . . Parts Damaged . | . . . Bothacking | -11 -10 -9 ------------ Run | Yrd Mat Mat Used RIF Installer . | . . . Robots Hacked . | . . . Non-combat . | . . . Combat . | . . . Robot Hacks Applied . | . . . Relay Couplers Released . | . . . Fabnet Peak Effective % . | . . . Robots Rewired . | . . . Allies Hacked . | . . . Hacks Repelled . | . . . Allies | -11 -10 -9 -------- Run | Yrd Mat Mat Total Allies . | . . . Largest Group . | . . . Highest-Rated Group . | . . . Highest-Rated Ally . | . . . Total Orders . | . . . Ally Attacks . | . . . Total Damage . | . . . Kills . | . . . Allies Corrupted . | . . . Allies Melted . | . . . Intel | -11 -10 -9 ------- Run | Yrd Mat Mat Active Infowar (turns) 164 | . 164 . Structural 55 | . 55 . ECM 109 | . 109 . Robot Analysis Total . | . . . Derelict Logs Recovered . | . . . Drone Launches . | . . . Drone Recoveries . | . . . Exploration | -11 -10 -9 ------------- Run | Yrd Mat Mat Turns Passed 914 | 69 356 489 Spaces Moved 359 | 42 162 155 Core 22 | 18 . 4 Treads . | . . . Legs 237 | 24 162 51 Wheels 100 | . . 100 Hover . | . . . Flight . | . . . Fastest Speed 50 | 50 120 110 Average Speed 181 | 126 185 192 Slowest Speed 750 | 200 260 750 Overloaded Moves . | . . . Propulsion Burnouts . | . . . Robots Hopped . | . . . Potential Cave-ins . | . . . Cave-ins Triggered . | . . . Exploration Rate (%) 17 | 4 33 14 Regions Visited 2 Branch Regions . Pre-discovered Areas . | . . . Known Exits Taken . | . . . Unknown Exits Taken 2 | 1 1 . Scrap Searched . | . . . Spaces Dug . | . . . Terrain Destroyed . | . . . Melee . | . . . Projectile . | . . . AOE . | . . . Terrain Rammed . | . . . Walls Destroyed . | . . . Machines Disabled . | . . . Actions | -11 -10 -9 --------- Run | Yrd Mat Mat Total 502 | 57 195 250 Wait . | . . . Move 357 | 41 161 155 Hop . | . . . Pick Up 26 | 10 8 8 Fast Attach . | . . . Attach 24 | 6 5 13 Detach 1 | . . 1 Swap . | . . . Drop 8 | . 4 4 Fire 86 | . 17 69 Melee . | . . . Ram . | . . . Kick . | . . . Crush . | . . . Escape Stasis . | . . . Rewire . | . . . Trap . | . . . Miscellaneous . | . . . Route ------- -11/Scrapyard -10/Materials -9/Materials History --------- Turn | Location | Event 27 | -11/Scrapyard | Discovered new exit (range 14) 70 | -11/Scrapyard | Entered Materials 313 | -10/Materials | Build established: Mutant 340 | -10/Materials | Discovered new exit (range 16) 426 | -10/Materials | Entered another Materials area 426 | -9/Materials | Evolved 2 slots: Power x2 815 | -9/Materials | Core integrity fell below 50% 847 | -9/Materials | Lost 5 parts (2p1n2w) 893 | -9/Materials | Core integrity fell below 20% 915 | -9/Materials | Destroyed by S-10 Pest with Light Assault Rifle Last Messages --------------- K-01 Serf collects debris. R-06 Scavenger collects Ion Engine. K-01 Serf destroyed. K-01 Serf collects debris. Acquired 24 matter. K-01 Serf collects debris. R-06 Scavenger destroyed. K-01 Serf collects debris. O-16 Technician: "IFF HANDSHAKE FAILED. SECURING TERMINAL." K-01 Serf collects debris. Acquired Lgt. Ion Engine. Autogun destroyed. R-06 Scavenger collects Aluminum Leg. R-06 Scavenger collects Sml. Storage Unit. Acquired Aluminum Leg. R-06 Scavenger collects Aluminum Leg. R-06 Scavenger collects Tractor Beam. K-01 Serf collects debris. Lgt. Ion Engine destroyed. Map ----- +----------------------------------------------------+ | ?????????????????????????????????????????????????? | | ?????????????????????????????????????????????????? | | ???????????????????????????#######???????????????? | | ????????####???##+######+### #???????????????? | | ???????? T?? #???????????????? | | ????????? ?? % #???????????????? | | ?????????? ??? %% #?##+##?????????? | | ??????????# """"""%%%""" #?# ?????????? | | ??????????# """"""%% """ #?# ?????????? | | ??????????# """""""% "" #?# ?????????? | | ?########## """"""" % #?# ?????????? | | """"""" = #?# #?????????? | | % =!% % #?# #?????????? | | ![%%* #?# #####?????? | | ???????####### [############ #?# #?????? | | ???????####??# #??????????# #?# #?????? | | ???????# ??# #??????????#%% #?# #?????? | | ???????# ?# #??#########! #?# #####?????? | | ???????# ?# #??# """ ## #?# #?????????? | | ???????# """ # #??# "Y" ## #?# #?????????? | | ???????# """ # #??# ## #?# #?????????? | | ???????# """ + #??# ## #?# #?????????? | | ???????# # #??# ## #?# #?????????? | | ???????# # #??# r ## ### ##????????? | | ??# ######## #######/####o ## #????????? | | ??# %@ %k #????????? | | ??# *s s T #????????? | | ??# #????????? | | ??# #########+########+########## #????????? | | ??# ???????# % #? ???????#######????????? | | ???????????# ## """ #????????????????????? | | ???????????# ##= """ #????????????????????? | | ???????????# ## """ #????????????????????? | | ???????????# ## """ #????????????????????? | | ???????????# ## +????????????????????? | | ???????????# ######??##???????????????????? | | ???????????# #????????????????????????????? | | ???????????# #????????????????????????????? | | ???????????#######+##????????????????????????????? | | ?????????????????# #?????????????????????????????? | | ?????????????????# #?????????????????????????????? | | ?????????????????# #?????????????????????????????? | | ?????????????????# #?????????????????????????????? | | ?????????????????# #?????????????????????????????? | | ?????????????????# #?????????????????????????????? | | ?????????????????# #?????????????????????????????? | | ?????????????????# #?????????????????????????????? | | ?????????????????? ??????????????????????????????? | | ?????????????????? ??????????????????????????????? | | ?????????????????? ??????????????????????????????? | +----------------------------------------------------+ Best States ------------- Heat Dissipation 28 Energy Generation 20 Energy Capacity 425 Matter Stores 400 Matter Capacity 400 Sight Range 16 Terrain Scan Density 10 ECM Strength 1 Evasion (%) 55 Item Schematics ----------------- None Robot Schematics ------------------ None Fabricated ------------ Nothing Repaired ---------- Nothing Alien Tech Used ----------------- None Achievements -------------- None Challenges ------------ None Game ------ Seed RiotMissileCompactor Manual? 0 Play Time 00:14:38 Cumulative 3.2 hours Start 2025.10.06 @ 16:51:30 End 2025.10.06 @ 17:03:42 Sessions 1 Manual Loads 0 Difficulty Rogue Special Mode None Game No. 9 Rogue 9 Adventurer 0 Explorer 0 Win Type - Total 0 Types 0/0/0/0/0/0/0/0/0/0 Lore% 2 Gallery% 8 Achievement% 8 Wizard Run 0 Options --------- Layout 1 ASCII 0 Keyboard 0 Movement Mouse Keybinds 0 Fullscreen 1 Font 32/SmallcapsGlow Map View 50x35 Zoom Use 0% Tactical HUD 0 Map Filters NONE Filters NONE Steam 1 RUN: 2ef1c3dd-4fac-48af-8486-f864271b9f23